fUSD/lending_fUSD_20250724
["ID","MTS","AMOUNT","RATE_DAILY","PERIOD"]
[374545217,1753347043964,-500.0,0.00026794,2]
[374545219,1753347043973,-500.0,0.00026794,2]
[374545220,1753347043983,-500.0,0.00026794,2]
[374545222,1753347043993,-500.0,0.00026794,2]
[374545224,1753347044002,-500.0,0.00026794,2]
[374545227,1753347044012,-500.0,0.00026794,2]
[374545229,1753347044022,-500.0,0.00026794,2]
[374545231,1753347044034,-500.0,0.00026794,2]
[374545233,1753347044043,-500.0,0.00026794,2]
[374545234,1753347044053,-500.0,0.00026794,2]
[374545236,1753347044064,-500.0,0.00026794,2]
[374545238,1753347044074,-500.0,0.00026794,2]
[374545240,1753347044084,-500.0,0.00026794,2]
[374545242,1753347044094,-500.0,0.00026794,2]
[374545244,1753347044103,-500.0,0.00026794,2]
[374545246,1753347044113,-500.0,0.00026794,2]
[374545248,1753347044123,-500.0,0.00026794,2]
[374545250,1753347044132,-500.0,0.00026794,2]
[374545252,1753347044142,-500.0,0.00026794,2]
[374545254,1753347044151,-500.0,0.00026794,2]
[374545256,1753347044161,-500.0,0.00026794,2]
[374545258,1753347044171,-500.0,0.00026794,2]
[374545260,1753347044181,-500.0,0.00026794,2]
[374545262,1753347044191,-500.0,0.00026794,2]
[374545264,1753347044201,-500.0,0.00026794,2]
[374545266,1753347044210,-500.0,0.00026794,2]
[374545268,1753347044219,-500.0,0.00026794,2]
[374545270,1753347044229,-500.0,0.00026794,2]
[374545272,1753347044239,-500.0,0.00026794,2]
[374545274,1753347044248,-500.0,0.00026794,2]
[374545276,1753347044257,-500.0,0.00026794,2]
[374545278,1753347044267,-500.0,0.00026794,2]
[374545280,1753347044276,-500.0,0.00026794,2]
[374545282,1753347044286,-500.0,0.00026794,2]
[374545284,1753347044295,-500.0,0.00026794,2]
[374545286,1753347044305,-500.0,0.00026794,2]
[374545288,1753347044315,-500.0,0.00026794,2]
[374545290,1753347044326,-500.0,0.00026794,2]
[374545292,1753347044336,-500.0,0.00026794,2]
[374545294,1753347044347,-500.0,0.00026794,2]
[374545296,1753347044361,-500.0,0.00026794,2]
[374545298,1753347044371,-500.0,0.00026794,2]
[374545300,1753347044380,-500.0,0.00026794,2]
[374545302,1753347044390,-500.0,0.00026794,2]
[374545304,1753347044400,-500.0,0.00026794,2]
[374545306,1753347044409,-500.0,0.00026794,2]
[374545308,1753347044419,-500.0,0.00026794,2]
[374545310,1753347044430,-500.0,0.00026794,2]
[374545312,1753347044439,-500.0,0.00026794,2]
[374545314,1753347044449,-500.0,0.00026794,2]
[374545316,1753347044459,-500.0,0.00026794,2]
[374545318,1753347044469,-500.0,0.00026794,2]
[374545320,1753347044479,-500.0,0.00026794,2]
[374545322,1753347044490,-500.0,0.00026794,2]
[374545324,1753347044499,-500.0,0.00026794,2]
[374545326,1753347044510,-500.0,0.00026794,2]
[374545328,1753347044520,-500.0,0.00026794,2]
[374545330,1753347044530,-500.0,0.00026794,2]
[374545332,1753347044539,-500.0,0.00026794,2]
[374545334,1753347044549,-500.0,0.00026794,2]
[374545336,1753347044559,-500.0,0.00026794,2]
[374545338,1753347044568,-500.0,0.00026794,2]
[374545340,1753347044580,-500.0,0.00026794,2]
[374545342,1753347044590,-500.0,0.00026794,2]
[374545344,1753347044600,-500.0,0.00026794,2]
[374545346,1753347044611,-500.0,0.00026794,2]
[374545348,1753347044621,-500.0,0.00026794,2]
[374545350,1753347044630,-500.0,0.00026794,2]
[374545353,1753347044640,-500.0,0.00026794,2]
[374545355,1753347044650,-500.0,0.00026794,2]
[374545357,1753347044660,-500.0,0.00026794,2]
[374545359,1753347044670,-500.0,0.00026794,2]
[374545361,1753347044680,-500.0,0.00026794,2]
[374545363,1753347044690,-500.0,0.00026794,2]
[374545365,1753347044700,-500.0,0.00026794,2]
[374545367,1753347044710,-500.0,0.00026794,2]
[374545369,1753347044720,-500.0,0.00026794,2]
[374545371,1753347044731,-500.0,0.00026794,2]
[374545373,1753347044741,-500.0,0.00026794,2]
[374545375,1753347044750,-500.0,0.00026794,2]
[374545377,1753347044760,-500.0,0.00026794,2]
[374545379,1753347044769,-500.0,0.00026794,2]
[374545381,1753347044779,-500.0,0.00026794,2]
[374545383,1753347044789,-500.0,0.00026794,2]
[374545385,1753347044799,-500.0,0.00026794,2]
[374545387,1753347044808,-500.0,0.00026794,2]
[374545389,1753347044818,-500.0,0.00026794,2]
[374545391,1753347044829,-500.0,0.00026794,2]
[374545393,1753347044839,-500.0,0.00026794,2]
[374545395,1753347044849,-500.0,0.00026794,2]
[374545397,1753347044862,-500.0,0.00026794,2]
[374545399,1753347044872,-500.0,0.00026794,2]
[374545401,1753347044882,-500.0,0.00026794,2]
[374545403,1753347044893,-500.0,0.00026794,2]
[374545405,1753347044903,-500.0,0.00026794,2]
[374545407,1753347044914,-500.0,0.00026794,2]
[374545409,1753347044924,-500.0,0.00026794,2]
[374545411,1753347044933,-500.0,0.00026794,2]
[374545413,1753347044942,-500.0,0.00026794,2]
[374545415,1753347044952,-500.0,0.00026794,2]
[374545417,1753347044966,-500.0,0.00026794,2]
[374545419,1753347044975,-500.0,0.00026794,2]
[374545421,1753347044985,-500.0,0.00026794,2]
[374545423,1753347044994,-500.0,0.00026794,2]
[374545425,1753347045004,-500.0,0.00026794,2]
[374545427,1753347045013,-500.0,0.00026794,2]
[374545429,1753347045024,-500.0,0.00026794,2]
[374545431,1753347045033,-500.0,0.00026794,2]
[374545433,1753347045044,-500.0,0.00026794,2]
[374545435,1753347045055,-500.0,0.00026794,2]
[374545437,1753347045064,-500.0,0.00026794,2]
[374545439,1753347045074,-500.0,0.00026794,2]
[374545441,1753347045085,-500.0,0.00026794,2]
[374545443,1753347045095,-500.0,0.00026794,2]
[374545445,1753347045106,-500.0,0.00026794,2]
[374545447,1753347045116,-500.0,0.00026794,2]
[374545449,1753347045125,-500.0,0.00026794,2]
[374545451,1753347045135,-500.0,0.00026794,2]
[374545453,1753347045144,-500.0,0.00026794,2]
[374545456,1753347045154,-500.0,0.00026794,2]
[374545457,1753347045164,-500.0,0.00026794,2]
[374545459,1753347045175,-500.0,0.00026794,2]
[374545461,1753347045184,-500.0,0.00026794,2]
[374545463,1753347045194,-500.0,0.00026794,2]
[374545465,1753347045204,-500.0,0.00026794,2]
[374545468,1753347045214,-500.0,0.00026794,2]
[374545470,1753347045223,-500.0,0.00026794,2]
[374545472,1753347045232,-500.0,0.00026794,2]
[374545474,1753347045242,-500.0,0.00026794,2]
[374545475,1753347045251,-500.0,0.00026794,2]
[374545477,1753347045261,-500.0,0.00026794,2]
[374545479,1753347045270,-500.0,0.00026794,2]
[374545481,1753347045279,-500.0,0.00026794,2]
[374545483,1753347045289,-500.0,0.00026794,2]
[374545485,1753347045299,-500.0,0.00026794,2]
[374545488,1753347045309,-500.0,0.00026794,2]
[374545489,1753347045318,-500.0,0.00026794,2]
[374545490,1753347045328,-500.0,0.00026794,2]
[374545491,1753347045337,-500.0,0.00026794,2]
[374545492,1753347045349,-500.0,0.00026794,2]
[374545493,1753347045358,-500.0,0.00026794,2]
[374545494,1753347045367,-500.0,0.00026794,2]
[374545495,1753347045376,-500.0,0.00026794,2]
[374545496,1753347045387,-500.0,0.00026794,2]
[374545497,1753347045396,-500.0,0.00026794,2]
[374545498,1753347045406,-500.0,0.00026794,2]
[374545499,1753347045415,-500.0,0.00026794,2]
[374545500,1753347045425,-500.0,0.00026794,2]
[374545501,1753347045435,-500.0,0.00026794,2]
[374545503,1753347045444,-500.0,0.00026794,2]
[374545505,1753347045454,-500.0,0.00026794,2]
[374545507,1753347045463,-500.0,0.00026794,2]
[374545509,1753347045472,-500.0,0.00026794,2]
[374545511,1753347045482,-500.0,0.00026794,2]
[374545514,1753347045491,-500.0,0.00026794,2]
[374545516,1753347045501,-500.0,0.00026794,2]
[374545518,1753347045511,-500.0,0.00026794,2]
[374545520,1753347045520,-500.0,0.00026794,2]
[374545522,1753347045530,-500.0,0.00026794,2]
[374545524,1753347045539,-500.0,0.00026794,2]
[374545526,1753347045548,-500.0,0.00026794,2]
[374545528,1753347045558,-500.0,0.00026794,2]
[374545530,1753347045568,-500.0,0.00026794,2]
[374545532,1753347045579,-500.0,0.00026794,2]
[374545534,1753347045588,-500.0,0.00026794,2]
[374545536,1753347045597,-500.0,0.00026794,2]
[374545538,1753347045607,-500.0,0.00026794,2]
[374545540,1753347045616,-500.0,0.00026794,2]
[374545542,1753347045626,-500.0,0.00026794,2]
[374545544,1753347045635,-500.0,0.00026794,2]
[374545546,1753347045645,-500.0,0.00026794,2]
[374545548,1753347045654,-500.0,0.00026794,2]
[374545550,1753347045664,-500.0,0.00026794,2]
[374545552,1753347045673,-500.0,0.00026794,2]
[374545554,1753347045683,-500.0,0.00026794,2]
[374545556,1753347045693,-500.0,0.00026794,2]
[374545558,1753347045703,-500.0,0.00026794,2]
[374545560,1753347045712,-500.0,0.00026794,2]
[374545562,1753347045722,-500.0,0.00026794,2]
[374545564,1753347045732,-500.0,0.00026794,2]
[374545566,1753347045742,-500.0,0.00026794,2]
[374545568,1753347045751,-500.0,0.00026794,2]
[374545570,1753347045760,-500.0,0.00026794,2]
[374545600,1753347045770,-500.0,0.00026794,2]
[374545605,1753347046075,-500.0,0.00026794,2]
[374545607,1753347046086,-500.0,0.00026794,2]
[374545609,1753347046095,-500.0,0.00026794,2]
[374545611,1753347046105,-500.0,0.00026794,2]
[374545613,1753347046115,-500.0,0.00026794,2]
[374545615,1753347046124,-500.0,0.00026794,2]
[374545617,1753347046133,-500.0,0.00026794,2]
[374545619,1753347046142,-516.0,0.00026794,2]
[374545620,1753347046151,-500.0,0.00026794,2]
[374545622,1753347046161,-500.0,0.00026794,2]
[374545624,1753347046171,-500.0,0.00026794,2]
[374545626,1753347046180,-500.0,0.00026794,2]
[374545629,1753347046190,-500.0,0.00026794,2]
[374545630,1753347046199,-500.0,0.00026794,2]
[374545632,1753347046208,-500.0,0.00026794,2]
[374545635,1753347046217,-500.0,0.00026794,2]
[374545637,1753347046227,-500.0,0.00026794,2]
[374545639,1753347046236,-500.0,0.00026794,2]
[374545641,1753347046245,-500.0,0.00026794,2]
[374545643,1753347046255,-500.0,0.00026794,2]
[374545645,1753347046264,-500.0,0.00026794,2]
[374545646,1753347046273,-500.0,0.00026794,2]
[374545648,1753347046281,-500.0,0.00026794,2]
[374545650,1753347046291,-500.0,0.00026794,2]
[374545652,1753347046300,-500.0,0.00026794,2]
[374545654,1753347046310,-500.0,0.00026794,2]
[374545656,1753347046320,-500.0,0.00026794,2]
[374545658,1753347046331,-500.0,0.00026794,2]
[374545660,1753347046342,-500.0,0.00026794,2]
[374545662,1753347046353,-500.0,0.00026794,2]
[374545665,1753347046365,-500.0,0.00026794,2]
[374545666,1753347046375,-500.0,0.00026794,2]
[374545669,1753347046385,-500.0,0.00026794,2]
[374545671,1753347046395,-500.0,0.00026794,2]
[374545674,1753347046406,-500.0,0.00026794,2]
[374545676,1753347046415,-500.0,0.00026794,2]
[374545678,1753347046425,-500.0,0.00026794,2]
[374545680,1753347046434,-500.0,0.00026794,2]
[374545681,1753347046445,-500.0,0.00026794,2]
[374545683,1753347046455,-500.0,0.00026794,2]
[374545685,1753347046464,-500.0,0.00026794,2]
[374545687,1753347046474,-500.0,0.00026794,2]
[374545689,1753347046484,-500.0,0.00026794,2]
[374545691,1753347046494,-565.0,0.00026794,2]
[374545693,1753347046504,-500.0,0.00026794,2]
[374545696,1753347046514,-500.0,0.00026794,2]
[374545698,1753347046524,-500.0,0.00026794,2]
[374545699,1753347046534,-520.0,0.00026794,2]
[374545701,1753347046544,-500.0,0.00026799,2]
[374545702,1753347046553,-500.0,0.00026799,2]
[374545704,1753347046564,-500.0,0.00026799,2]
[374545706,1753347046574,-500.0,0.00026799,2]
[374545708,1753347046586,-500.0,0.00026799,2]
[374545709,1753347046596,-500.0,0.00026799,2]
[374545711,1753347046606,-457.16482483,0.00026799,2]
[374545713,1753347046616,-500.0,0.00026799,2]
[374545715,1753347046627,-500.0,0.00026799,2]
[374545716,1753347046636,-333.45010218,0.00026799,2]
[374545718,1753347046646,-266.05646371,0.00026799,2]
[374545720,1753347046655,-1000.0,0.000268,2]
[374545722,1753347046665,-201.63081828,0.000269,2]
[374545723,1753347046675,-4563.18700326,0.00026919,3]
[374545725,1753347046685,-200.0,0.00026922,2]
[374545727,1753347046695,-546.0,0.00026929,2]
[374545728,1753347046704,-3427.65741128,0.00026941,2]
[374545730,1753347046714,-4563.18700326,0.00026941,3]
[374545732,1753347046723,-3427.65741128,0.00026945,2]
[374545734,1753347046733,-972.2635,0.00026951,2]
[374545735,1753347046742,-200.0,0.00026952,2]
[374545737,1753347046751,-545.0,0.00026952,2]
[374545739,1753347046761,-4563.18700326,0.00026952,3]
[374545741,1753347046771,-3501.25476609,0.00026954,2]
[374545798,1753347047423,-513.20899243,0.00026954,2]
[374545800,1753347047435,-843.12830711,0.00026957,2]
[374545914,1753347049222,-6115.39785361,0.00026957,2]
[374545915,1753347049233,-4014.46375852,0.00026961,2]
[374545916,1753347049243,-3681.89183357,0.00026962,2]
[374545917,1753347049253,-173.428519,0.00026962,7]
[374545918,1753347049263,-151.0,0.00026962,7]
[374545919,1753347049272,-173.428519,0.00026962,7]
[374545920,1753347049281,-151.0,0.00026962,7]
[374545921,1753347049291,-171.017061,0.00026962,7]
[374545922,1753347049301,-171.017061,0.00026962,7]
[374545923,1753347049311,-151.0,0.00026962,7]
[374545924,1753347049321,-333.515884,0.00026962,7]
[374545925,1753347049331,-333.515884,0.00026962,7]
[374545926,1753347049341,-151.0,0.00026962,7]
[374545927,1753347049351,-175.681872,0.00026962,7]
[374545928,1753347049364,-175.681872,0.00026962,7]
[374545930,1753347049374,-151.0,0.00026962,7]
[374545932,1753347049383,-151.0,0.00026962,7]
[374545934,1753347049392,-151.0,0.00026962,7]
[374545936,1753347049403,-151.0,0.00026962,7]
[374545938,1753347049412,-151.0,0.00026962,7]
[374545940,1753347049421,-285.883412,0.00026962,7]
[374545942,1753347049432,-252.3385662,0.00026962,7]
[374545947,1753347049554,-33.5448458,0.00026962,7]
[374545948,1753347049564,-151.0,0.00026962,7]
[374545949,1753347049574,-151.0,0.00026962,7]
[374545950,1753347049584,-180.808131,0.00026962,7]
[374545951,1753347049593,-180.808131,0.00026962,7]
[374545952,1753347049603,-12.46260096,0.00026962,7]
[374545953,1753347049666,-305.27958404,0.00026962,7]
[374545955,1753347049677,-317.742185,0.00026962,7]
[374545958,1753347049688,-4563.18700326,0.00026963,3]
[374545959,1753347049698,-174.52382011,0.00026964,2]
[374545968,1753347049768,-7879.64947474,0.00026964,2]
[374545970,1753347049778,-172.28,0.00026964,2]
[374545972,1753347049788,-1205.70170128,0.00026965,3]
[374545997,1753347050072,-973.17038355,0.00026712,2]
[374545998,1753347050085,-119.97211245,0.00026712,2]
[374545999,1753347050095,-3357.48530198,0.00026965,3]
[374546000,1753347050105,-2729.74258557,0.00026969,2]
[374546001,1753347050145,-697.91482571,0.00026969,2]
[374546002,1753347050155,-200.0,0.0002697,2]
[374546003,1753347050164,-609.07980369,0.0002697,3]
[374546004,1753347130645,175.88125525,0.00026956,120]
[374546005,1753347164764,451.0,0.0002739,120]
[374546006,1753347223210,384.0,0.0002739,120]
[374546007,1753347352519,445.1802467,0.00027,120]
[374546008,1753347501087,1500.0,0.00025335,120]
[374546009,1753347577401,-900.0,0.00027425,30]
[374546010,1753347694996,264.41,0.00025214,120]
[374546011,1753347831181,300.0,0.00027397,120]
[374546012,1753347838498,300.0,0.00027397,120]
[374546013,1753347845545,300.0,0.00027397,120]
[374546014,1753347855044,300.0,0.00027397,120]
[374546016,1753347899017,152.04,0.00013699,2]
[374546017,1753347939866,300.0,0.00027397,120]
[374546037,1753348138828,219.47,0.00027397,120]
[374546039,1753348231954,-792.37,0.00019453,2]
[374546040,1753348231964,-76.49225705,0.00020318,2]
[374546041,1753348231975,-2423.50774295,0.00020318,2]
[374546042,1753348231985,-152.54407254,0.00021084,2]
[374546043,1753348231995,-792.37,0.00021183,2]
[374546044,1753348232005,-250.0,0.00021398,2]
[374546045,1753348232015,-1666.81016675,0.00021398,2]
[374546046,1753348232126,-833.18983325,0.00021398,2]
[374546047,1753348232136,-300.0,0.00021398,2]
[374546048,1753348232145,-152.04,0.00021404,2]
[374546049,1753348232155,-287.0,0.00022,2]
[374546050,1753348232165,-164.50516175,0.000222,2]
[374546051,1753348232176,-741.19282525,0.000222,2]
[374546052,1753348232186,-597.99626787,0.00022673,2]
[374546053,1753348232195,-398.66417858,0.00022673,2]
[374546054,1753348232204,-309.7098344,0.000229,8]
[374546055,1753348232214,-792.37,0.00022914,2]
[374546056,1753348232223,-667.0,0.00023103,2]
[374546057,1753348232233,-281.0,0.0002318,2]
[374546058,1753348232242,-148.42121921,0.00023192,2]
[374546059,1753348232293,-4.12285332,0.00023192,2]
[374546060,1753348232303,-309.70983431,0.0002321,8]
[374546061,1753348232313,-474.0,0.00023252,2]
[374546062,1753348232322,-247.17863061,0.0002332,2]
[374546063,1753348232332,-188.40681719,0.0002332,2]
[374546064,1753348232341,-309.70983431,0.00023521,9]
[374546065,1753348232351,-4.47408545,0.00023831,10]
[374546066,1753348232364,-305.23574886,0.00023831,10]
[374546067,1753348232374,-309.70983431,0.00024141,10]
[374546068,1753348232383,-511.0,0.00024319,2]
[374546069,1753348232393,-275.0,0.0002437,2]
[374546070,1753348232404,-211.01152796,0.00024408,2]
[374546071,1753348232414,-1871.52802887,0.00024446,2]
[374546072,1753348232426,-728.0,0.00024446,2]
[374546073,1753348232438,-621.98699996,0.00024446,2]
[374546074,1753348232475,-2595.17643654,0.00024446,2]
[374546100,1753348238519,-250.0,0.00024364,2]
[374546102,1753348238528,-13263.78979599,0.00024446,2]
[374546106,1753348238558,-4819.51873864,0.00024446,2]
[374546108,1753348238568,-1000.0,0.00024517,2]
[374546110,1753348238578,-238.96,0.00024517,2]
[374546112,1753348238589,-180.0,0.00024541,7]
[374546114,1753348238599,-792.37,0.00024644,2]
[374546116,1753348238608,-157.0,0.00024683,2]
[374546118,1753348238617,-153.0,0.00024683,2]
[374546120,1753348238627,-151.0,0.00024683,2]
[374546122,1753348238636,-153.0,0.00024683,2]
[374546124,1753348238646,-157.0,0.00024683,2]
[374546126,1753348238655,-1211.0,0.00024683,2]
[374546128,1753348238664,-157.0,0.00024683,2]
[374546130,1753348238674,-153.0,0.00024683,2]
[374546132,1753348238683,-1211.0,0.00024683,2]
[374546133,1753348238692,-157.0,0.00024683,2]
[374546134,1753348238702,-266.70916952,0.00024683,2]
[374546135,1753348238713,-1211.0,0.00024683,2]
[374546136,1753348238722,-157.0,0.00024683,2]
[374546137,1753348238732,-153.0,0.00024683,2]
[374546138,1753348238741,-157.0,0.00024683,2]
[374546139,1753348238751,-163.29852197,0.00024683,2]
[374546140,1753348238760,-1211.0,0.00024683,2]
[374546141,1753348238769,-153.0,0.00024683,2]
[374546142,1753348238778,-153.0,0.00024683,2]
[374546143,1753348238789,-153.0,0.00024683,2]
[374546144,1753348238799,-1211.0,0.00024683,2]
[374546145,1753348238807,-672.31135412,0.00024683,2]
[374546146,1753348238819,-538.68864588,0.00024683,2]
[374546147,1753348238828,-456.07520585,0.00024812,2]
[374546148,1753348238840,-310.53479415,0.00024812,2]
[374546150,1753348238850,-477.18900901,0.00024855,2]
[374546152,1753348238860,-666.0,0.00024968,3]
[374546154,1753348238870,-71.32881408,0.00025,2]
[374546159,1753348238901,-81.73118592,0.00025,2]
[374546161,1753348238911,-2343.12019332,0.00025014,2]
[374546163,1753348238920,-4181.034672,0.00025014,2]
[374546165,1753348238929,-231.28369723,0.00025014,2]
[374546166,1753348238939,-152.0,0.00025042,3]
[374546168,1753348238948,-440.57,0.00025058,2]
[374546170,1753348238957,-788.56,0.00025206,2]
[374546172,1753348238966,-157.37,0.00025231,2]
[374546174,1753348238976,-157.37,0.00025247,2]
[374546177,1753348238985,-157.37,0.00025264,2]
[374546180,1753348238994,-157.37,0.00025281,2]
[374546182,1753348239003,-222.6,0.00025289,2]
[374546184,1753348239013,-157.37,0.00025298,2]
[374546186,1753348239022,-152.54407253,0.00025299,2]
[374546188,1753348239031,-150.0,0.00025302,2]
[374546190,1753348239041,-157.37,0.00025315,2]
[374546192,1753348239050,-157.37,0.00025332,2]
[374546194,1753348239060,-157.37,0.00025348,2]
[374546196,1753348239069,-157.37,0.00025365,2]
[374546198,1753348239078,-157.37,0.00025382,2]
[374546200,1753348239087,-2751.0,0.00025382,2]
[374546202,1753348239096,-890.0,0.00025399,2]
[374546204,1753348239106,-1167.0,0.00025399,2]
[374546206,1753348239116,-3915.16510466,0.00025399,2]
[374546230,1753348239351,-213.83489534,0.00025399,2]
[374546233,1753348239361,-718.26510466,0.00025399,2]
[374546393,1753348240865,-153.0,0.00024683,2]
[374546395,1753348240875,-1201.75149399,0.00024683,2]
[374546402,1753348240926,-9.24850601,0.00024683,2]
[374546404,1753348240936,-439.0,0.00025079,2]
[374546406,1753348240945,-177.09149399,0.00025399,2]
[374546410,1753348240980,-1885.94,0.00025399,2]
[374546430,1753348241163,-549.84085503,0.00025399,2]
[374546435,1753348241198,-2723.86254632,0.00025399,2]
[374546437,1753348241207,-21379.0,0.00025399,2]
[374546439,1753348241217,-863.0,0.00025399,2]
[374546441,1753348241227,-157.37,0.00025399,2]
[374546443,1753348241236,-157.37,0.00025416,2]
[374546445,1753348241246,-180.47,0.00025424,2]
[374546447,1753348241255,-157.37,0.00025432,2]
[374546449,1753348241265,-511.0,0.00025434,3]
[374546451,1753348241275,-157.37,0.00025449,2]
[374546453,1753348241284,-163.17845202,0.00025463,2]
[374546455,1753348241293,-600.0,0.00025463,2]
[374546457,1753348241302,-151.0,0.00025463,2]
[374546459,1753348241312,-151.0,0.00025463,2]
[374546461,1753348241322,-163.81419456,0.00025463,2]
[374546463,1753348241331,-157.37,0.00025466,2]
[374546465,1753348241340,-200.0,0.00025479,2]
[374546467,1753348241349,-200.0,0.00025479,2]
[374546469,1753348241358,-200.0,0.00025479,2]
[374546471,1753348241368,-200.0,0.00025479,2]
[374546473,1753348241377,-200.0,0.00025479,2]
[374546475,1753348241387,-200.0,0.00025479,2]
[374546477,1753348241396,-200.0,0.00025479,2]
[374546479,1753348241405,-200.0,0.00025479,2]
[374546481,1753348241415,-200.0,0.00025479,2]
[374546483,1753348241424,-200.0,0.00025479,2]
[374546485,1753348241434,-200.0,0.00025479,2]
[374546487,1753348241443,-200.0,0.00025479,2]
[374546489,1753348241452,-200.0,0.00025479,2]
[374546491,1753348241462,-200.0,0.00025479,2]
[374546493,1753348241471,-200.0,0.00025479,2]
[374546495,1753348241480,-200.0,0.00025479,2]
[374546497,1753348241490,-200.0,0.00025479,2]
[374546499,1753348241499,-200.0,0.00025479,2]
[374546501,1753348241509,-200.0,0.00025479,2]
[374546503,1753348241523,-200.0,0.00025479,2]
[374546505,1753348241534,-200.0,0.00025479,2]
[374546507,1753348241543,-200.0,0.00025479,2]
[374546509,1753348241552,-200.0,0.00025479,2]
[374546511,1753348241561,-200.0,0.00025479,2]
[374546513,1753348241570,-200.0,0.00025479,2]
[374546515,1753348241579,-200.0,0.00025479,2]
[374546517,1753348241590,-200.0,0.00025479,2]
[374546519,1753348241599,-200.0,0.00025479,2]
[374546521,1753348241608,-200.0,0.00025479,2]
[374546523,1753348241618,-200.0,0.00025479,2]
[374546525,1753348241627,-200.0,0.00025479,2]
[374546527,1753348241636,-200.0,0.00025479,2]
[374546529,1753348241646,-200.0,0.00025479,2]
[374546531,1753348241655,-200.0,0.00025479,2]
[374546533,1753348241665,-200.0,0.00025479,2]
[374546535,1753348241674,-200.0,0.00025479,2]
[374546537,1753348241683,-200.0,0.00025479,2]
[374546538,1753348241693,-200.0,0.00025479,2]
[374546539,1753348241708,-200.0,0.00025479,2]
[374546540,1753348241728,-200.0,0.00025479,2]
[374546541,1753348241748,-200.0,0.00025479,2]
[374546542,1753348241764,-200.0,0.00025479,2]
[374546543,1753348241775,-200.0,0.00025479,2]
[374546544,1753348241784,-200.0,0.00025479,2]
[374546545,1753348241794,-193.35169351,0.00025479,2]
[374546548,1753348241807,-6.64830649,0.00025479,2]
[374546550,1753348241816,-200.0,0.00025479,2]
[374546551,1753348241825,-200.0,0.00025479,2]
[374546553,1753348241836,-66.51169351,0.00025479,2]
[374546556,1753348241847,-133.48830649,0.00025479,2]
[374546558,1753348241856,-200.0,0.00025479,2]
[374546560,1753348241865,-200.0,0.00025479,2]
[374546562,1753348241875,-200.0,0.00025479,2]
[374546564,1753348241884,-200.0,0.00025479,2]
[374546565,1753348241894,-200.0,0.00025479,2]
[374546568,1753348241903,-200.0,0.00025479,2]
[374546569,1753348241913,-200.0,0.00025479,2]
[374546571,1753348241922,-200.0,0.00025479,2]
[374546573,1753348241932,-200.0,0.00025479,2]
[374546575,1753348241941,-200.0,0.00025479,2]
[374546578,1753348241951,-200.0,0.00025479,2]
[374546579,1753348241961,-200.0,0.00025479,2]
[374546581,1753348241971,-200.0,0.00025479,2]
[374546583,1753348241980,-200.0,0.00025479,2]
[374546586,1753348241991,-200.0,0.00025479,2]
[374546588,1753348242000,-200.0,0.00025479,2]
[374546590,1753348242009,-200.0,0.00025479,2]